[Event "5th Ordu Open 2019"]
[Site "Ordu"]
[Date "2019.04.30"]
[Round "2.17"]
[White "Daghan, Devran"]
[Black "Aytekin, Murat Eren"]
[Result "0-1"]
[ECO "A41"]
[WhiteElo "1993"]
[BlackElo "2134"]
[Annotator "NA"]
[PlyCount "84"]
[EventDate "2019.04.29"]
[EventType "swiss"]
[EventCountry "TUR"]
[SourceTitle "playchess.com"]
[Source "ChessBase"]
[SourceQuality "1"]
[TimeControl "5400+30"]

1. d4 {[%emt 0:03:30]} g6 {[%emt 0:00:30]} 2. Bf4 {[%emt 0:00:30]} Bg7 {[%emt 0:00:30]} 3. e3 {[%emt 0:01:30]} d6 {[%emt 0:00:00]} 4. Nf3 {[%emt 0:01:30]} Nd7 {[%emt 0:00:00]} 5. Nbd2 {[%emt 0:04:30]} e5 {[%emt 0:02:30]} 6. dxe5 {[%emt 0:05:30]} dxe5 {[%emt 0:01:30]} 7. Bg5 {[%emt 0:07:30]} Ne7 {[%emt 0:06:30]} (7... f6 $5 8. Bh4 $8 Nh6 $11) 8. Bc4 {[%emt 0:11:30]} h6 {[%emt 0:02:30]} 9. Bh4 {[%emt 0:04:30]} O-O {[%emt 0:01:30]} 10. Ne4 {[%emt 0:09:30]} a6 $11 {[%emt 0:23:30]} 11. Qe2 {[%emt 0:07:30]} Qe8 {[%emt 0:05:30]} 12. O-O-O {[%emt 0:08:30]} Nf5 {[%emt 0:04:30]} 13. Rxd7 {[%emt 0:10:30]} Bxd7 {[%emt 0:03:30]} 14. Nf6+ {[%emt 0:01:24]} Bxf6 {[%emt 0:00:30]} 15. Bxf6 {[%emt 0:00:00]} e4 {[%emt 0:02:30]} 16. Ne5 {[%emt 0:01:21]} Be6 {[%emt 0:01:30]} 17. g4 {[%emt 0:14:05]} Nd6 {[%emt 0:01:30]} 18. Bb3 {[%emt 0:04:35]} Bxb3 {[%emt 0:01:30]} 19. axb3 {[%emt 0:00:04]} Qe6 {[%emt 0:01:30]} 20. g5 {[%emt 0:00:15]} h5 {[%emt 0:01:30]} 21. Rd1 {[%emt 0:01:43]} a5 {[%emt 0:00:30]} 22. c4 {[%emt 0:00:27]} b6 {[%emt 0:02:30]} 23. Nc6 {[%emt 0:00:33]} a4 {[%emt 0:00:30]} 24. Ne7+ {[%emt 0:00:53]} Kh7 {[%emt 0:00:30]} 25. Nd5 {[%emt 0:00:00]} axb3 {[%emt 0:02:30]} 26. Bc3 {[%emt 0:00:23]} Ra1+ {[%emt 0:01:30]} 27. Kd2 {[%emt 0:00:01]} Rxd1+ {[%emt 0:03:30]} 28. Kxd1 {[%emt 0:00:13]} Ne8 {[%emt 0:00:30]} 29. f4 {[%emt 0:01:21]} c6 {[%emt 0:01:30]} 30. Nxb6 {[%emt 0:00:30]} Nd6 {[%emt 0:00:30]} 31. Bf6 {[%emt 0:00:23]} Rb8 {[%emt 0:00:30]} 32. c5 {[%emt 0:00:25]} Ne8 {[%emt 0:00:30]} 33. Bd4 {[%emt 0:00:38]} Ng7 {[%emt 0:01:30]} 34. Qc4 {[%emt 0:00:40]} Qg4+ {[%emt 0:01:30]} 35. Kd2 {[%emt 0:00:30]} Ne6 {[%emt 0:00:30]} 36. Nd7 {[%emt 0:00:28]} Qg2+ {[%emt 0:00:30]} 37. Ke1 {[%emt 0:00:35]} Ra8 {[%emt 0:03:30]} 38. Nf6+ {[%emt 0:00:14]} Kg7 {[%emt 0:00:30]} 39. Nd7+ {[%emt 0:00:44]} Kg8 {[%emt 0:00:30]} 40. Nf6+ {[%emt 0:00:31]} Kf8 {[%emt 0:00:00]} 41. Qe2 {[%emt 0:00:19]} Qg1+ {[%emt 0:01:00]} 42. Kd2 {[%emt 0:00:30]} Nxd4 {[%emt 0:00:00]} 0-1

[Event "5th Ordu Open 2019"]
[Site "Ordu"]
[Date "2019.04.30"]
[Round "2.18"]
[White "Uzunoglu, Efe Kerem"]
[Black "Alumert, Orkun Efe"]
[Result "1/2-1/2"]
[ECO "A48"]
[WhiteElo "2106"]
[BlackElo "2045"]
[Annotator "NA"]
[PlyCount "47"]
[EventDate "2019.04.29"]
[EventType "swiss"]
[EventCountry "TUR"]
[SourceTitle "playchess.com"]
[Source "ChessBase"]
[SourceQuality "1"]
[TimeControl "5400+30"]

1. d4 {[%emt 0:00:30]} Nf6 {[%emt 0:00:30]} 2. Nf3 {[%emt 0:00:30]} g6 {[%emt 0:00:30]} 3. Bf4 {[%emt 0:00:30]} Bg7 {[%emt 0:00:00]} 4. e3 {[%emt 0:01:30]} O-O {[%emt 0:00:00]} 5. Be2 {[%emt 0:00:30]} d6 {[%emt 0:00:30]} 6. O-O {[%emt 0:00:30]} Nc6 {[%emt 0:03:30]} 7. h3 {[%emt 0:00:30]} Nd7 {[%emt 0:00:30]} 8. c4 {[%emt 0:00:30]} e5 {[%emt 0:00:30]} 9. Bh2 {[%emt 0:00:00]} exd4 {[%emt 0:00:30]} 10. exd4 {[%emt 0:00:00]} Qf6 {[%emt 0:00:30]} 11. Nc3 {[%emt 0:00:00]} Nxd4 {[%emt 0:03:30]} 12. Nxd4 {[%emt 0:00:00]} Qxd4 {[%emt 0:00:30]} 13. Nd5 {[%emt 0:00:30]} Qxd1 {[%emt 0:13:30]} 14. Raxd1 {[%emt 0:05:30]} c6 $1 {[%emt 0:02:30]} 15. Ne7+ {[%emt 0:12:30]} Kh8 {[%emt 0:01:30]} 16. Bxd6 {[%emt 0:00:30]} Re8 {[%emt 0:01:30]} 17. Bf3 {[%emt 0:24:30]} Ne5 {[%emt 0:04:30]} 18. Bxe5 {[%emt 0:03:30]} Bxe5 $11 {[%emt 0:00:30]} 19. Nxc8 {[%emt 0:05:30]} Raxc8 {[%emt 0:02:30]} 20. Rd7 {[%emt 0:00:30]} Rc7 {[%emt 0:00:30]} 21. Rfd1 {[%emt 0:01:30]} Rec8 {[%emt 0:01:30]} 22. b4 {[%emt 0:02:30]} Rxd7 {[%emt 0:00:30]} 23. Rxd7 {[%emt 0:00:30]} Rc7 {[%emt 0:00:30]} 24. Rxc7 {[%emt 0:00:30]} 1/2-1/2

[Event "5th Ordu Open 2019"]
[Site "Ordu"]
[Date "2019.04.30"]
[Round "2.19"]
[White "Hajiyev, Shahin"]
[Black "Unat, Can Haktan"]
[Result "1/2-1/2"]
[ECO "D86"]
[WhiteElo "1972"]
[BlackElo "2110"]
[Annotator "NA"]
[PlyCount "58"]
[EventDate "2019.04.29"]
[EventType "swiss"]
[EventCountry "TUR"]
[SourceTitle "playchess.com"]
[Source "ChessBase"]
[SourceQuality "1"]
[TimeControl "5400+30"]

1. d4 {[%emt 0:00:30]} Nf6 {[%emt 0:00:30]} 2. c4 {[%emt 0:00:30]} g6 {[%emt 0:00:00]} 3. Nc3 {[%emt 0:00:00]} d5 {[%emt 0:00:00]} 4. cxd5 {[%emt 0:00:00]} Nxd5 {[%emt 0:00:30]} 5. e4 {[%emt 0:00:30]} Nxc3 {[%emt 0:00:30]} 6. bxc3 {[%emt 0:00:30]} Bg7 {[%emt 0:00:30]} 7. Bc4 {[%emt 0:00:30]} O-O {[%emt 0:00:30]} 8. Ne2 {[%emt 0:00:30]} Nc6 {[%emt 0:00:00]} 9. O-O {[%emt 0:00:00]} b6 {[%emt 0:00:00]} 10. Bg5 {[%emt 0:00:00]} Bb7 {[%emt 0:00:30]} 11. Qd2 {[%emt 0:00:30] D86: Exchange Grünfeld: Classical Line (7 Bc4)} Qd6 {[%emt 0:00:30]} 12. Bh6 {[%emt 0:02:30]} (12. Rad1 e5 13. Ba6 Na5 14. Bxb7 Nxb7 15. Bh6 Rfe8 16. Bxg7 Kxg7 17. Ng3 Rad8 18. f4 exd4 19. cxd4 {1-0 (38) Ivanchuk,V (2714)-Svidler,P (2713) Wijk aan Zee 1999}) 12... e5 {[%emt 0:02:30]} 13. Bxg7 {[%emt 0:02:30]} Kxg7 {[%emt 0:02:30]} 14. Bd5 $146 {[%emt 0:02:30]} ({Predecessor:} 14. f4 exd4 15. cxd4 Na5 16. Bd3 f5 17. d5 fxe4 18. Bxe4 Rae8 19. Bf3 c5 {0-1 (36) Celestino,G (2206)-Ripari,M (2324) Mar del Plata 2006}) 14... Na5 {[%emt 0:05:30]} 15. Bxb7 {[%emt 0:00:30]} Nxb7 {[%emt 0:00:00]} 16. f4 {[%emt 0:02:30]} exd4 {[%emt 0:14:00]} 17. cxd4 {[%emt 0:02:30]} f6 {[%emt 0:01:30]} 18. Qc3 {[%emt 0:07:30]} c5 {[%emt 0:13:30]} 19. Rad1 {[%emt 0:04:30]} Rad8 {[%emt 0:05:30]} (19... Rae8 $11) 20. d5 {[%emt 0:12:30]} Rfe8 $16 {[%emt 0:00:30]} 21. Ng3 {[%emt 0:03:30]} b5 {[%emt 0:04:30]} 22. h4 {[%emt 0:05:30]} c4 {[%emt 0:02:30]} 23. Qf3 {[%emt 0:02:30]} Nc5 {[%emt 0:07:30]} 24. h5 {[%emt 0:04:30]} Nd3 {[%emt 0:07:30]} 25. Qg4 {[%emt 0:10:30]} Qc5+ {[%emt 0:03:30]} 26. Kh2 {[%emt 0:01:30]} Qc8 {[%emt 0:09:56]} 27. Nf5+ {[%emt 0:03:30]} Kf7 {[%emt 0:00:39]} 28. hxg6+ {[%emt 0:01:30]} hxg6 {[%emt 0:00:07]} 29. Nh6+ {[%emt 0:00:30]} Kg7 {[%emt 0:00:53]} 1/2-1/2

[Event "5th Ordu Open 2019"]
[Site "Ordu"]
[Date "2019.04.30"]
[Round "3.2"]
[White "Pacher, Milan"]
[Black "Asgari, Morteza"]
[Result "1-0"]
[ECO "D96"]
[WhiteElo "2391"]
[BlackElo "2248"]
[Annotator "NA"]
[PlyCount "91"]
[EventDate "2019.04.29"]
[EventType "swiss"]
[EventCountry "TUR"]
[SourceTitle "playchess.com"]
[Source "ChessBase"]
[SourceQuality "1"]
[TimeControl "5400+30"]

1. d4 {[%emt 0:01:30]} Nf6 {[%emt 0:00:30]} 2. c4 {[%emt 0:00:30]} g6 {[%emt 0:00:30]} 3. Nc3 {[%emt 0:00:30]} d5 {[%emt 0:00:30]} 4. Nf3 {[%emt 0:00:30]} Bg7 {[%emt 0:00:30]} 5. Qb3 {[%emt 0:00:30]} dxc4 {[%emt 0:00:30]} 6. Qxc4 {[%emt 0:00:30]} Be6 {[%emt 0:01:30]} 7. Qb5+ {[%emt 0:05:30]} Nc6 {[%emt 0:00:30]} (7... Bd7 $5 {[%cal Rd7b5]} 8. Qxb7 Bc6 $14) 8. Qxb7 {[%emt 0:10:30]} Bd7 {[%emt 0:00:30]} 9. Qb3 {[%emt 0:00:30]} Rb8 {[%emt 0:01:30]} 10. Qd1 {[%emt 0:00:30]} Bf5 {[%emt 0:00:30]} 11. Qa4 $14 {[%emt 0:02:30]} Bd7 {[%emt 0:03:30]} 12. e3 {[%emt 0:04:30]} Nb4 {[%emt 0:05:30]} 13. Bb5 {[%emt 0:08:30]} c6 {[%emt 0:23:30]} 14. Qxb4 {[%emt 0:04:30]} cxb5 {[%emt 0:01:30]} 15. Ne5 {[%emt 0:01:30]} a5 {[%emt 0:01:30]} 16. Qb3 {[%emt 0:00:30]} Be6 {[%emt 0:01:30]} 17. Qd1 {[%emt 0:00:30]} b4 {[%emt 0:06:30]} 18. Na4 {[%emt 0:02:30]} Bd5 {[%emt 0:02:30]} 19. O-O {[%emt 0:02:30]} O-O {[%emt 0:04:30]} 20. b3 {[%emt 0:00:30]} Nd7 {[%emt 0:01:30]} 21. Nxd7 {[%emt 0:04:30]} Qxd7 {[%emt 0:00:30]} 22. Bb2 {[%emt 0:00:30]} f5 {[%emt 0:06:30]} 23. Rc1 {[%emt 0:03:30]} Bc6 {[%emt 0:08:30]} 24. Nc5 {[%emt 0:10:30]} Qd5 {[%emt 0:00:30]} 25. f3 {[%emt 0:00:30]} Bh6 {[%emt 0:00:00]} 26. Re1 {[%emt 0:00:30]} Rbc8 {[%emt 0:01:00]} 27. Rc2 {[%emt 0:02:30]} e5 {[%emt 0:03:30]} 28. e4 {[%emt 0:07:30]} fxe4 {[%emt 0:00:00]} 29. Nxe4 {[%emt 0:07:44]} exd4 {[%emt 0:03:00]} 30. Bxd4 {[%emt 0:00:43]} Rcd8 {[%emt 0:17:31]} 31. Qa1 {[%emt 0:00:40]} Qxd4+ {[%emt 0:00:47]} 32. Qxd4 {[%emt 0:00:30]} Rxd4 {[%emt 0:00:30]} 33. Rxc6 {[%emt 0:00:00]} a4 {[%emt 0:01:41]} 34. bxa4 {[%emt 0:01:00]} Ra8 {[%emt 0:00:02]} 35. Nf6+ {[%emt 0:00:35]} Kh8 {[%emt 0:00:57]} 36. a5 {[%emt 0:00:54]} Rd2 {[%emt 0:01:05]} 37. Rc7 {[%emt 0:06:43]} Bg7 {[%emt 0:00:24]} 38. Ng4 {[%emt 0:02:26]} Rxa2 {[%emt 0:00:47]} 39. Ree7 {[%emt 0:00:09]} Bd4+ {[%emt 0:02:26]} 40. Kf1 {[%emt 0:00:30]} h5 {[%emt 0:00:45]} 41. Nh6 {[%emt 0:00:27]} Ra1+ {[%emt 0:00:30]} 42. Ke2 {[%emt 0:00:30]} Bg7 {[%emt 0:00:30]} 43. Rxg7 {[%emt 0:00:30]} Re8+ {[%emt 0:00:30]} 44. Kf2 {[%emt 0:00:30]} Ra2+ {[%emt 0:00:30]} 45. Kg3 {[%emt 0:00:30]} h4+ {[%emt 0:00:30]} 46. Kh3 {[%emt 0:00:00]} 1-0

[Event "5th Ordu Open 2019"]
[Site "Ordu"]
[Date "2019.04.30"]
[Round "3.5"]
[White "Akhvlediani, Irakli"]
[Black "Sibashvili, Giorgi"]
[Result "1/2-1/2"]
[ECO "E05"]
[WhiteElo "2261"]
[BlackElo "2398"]
[Annotator "NA"]
[PlyCount "54"]
[EventDate "2019.04.29"]
[EventType "swiss"]
[EventCountry "TUR"]
[SourceTitle "playchess.com"]
[Source "ChessBase"]
[SourceQuality "1"]
[TimeControl "5400+30"]

1. d4 {[%emt 0:00:30]} Nf6 {[%emt 0:00:30]} 2. c4 {[%emt 0:00:30]} e6 {[%emt 0:00:30]} 3. Nf3 {[%emt 0:00:00]} d5 {[%emt 0:00:00]} 4. g3 {[%emt 0:00:00]} Be7 {[%emt 0:00:00]} 5. Bg2 {[%emt 0:00:30]} O-O {[%emt 0:00:30]} 6. O-O {[%emt 0:00:00]} dxc4 {[%emt 0:00:30]} 7. Qc2 {[%emt 0:00:00]} a6 {[%emt 0:00:30]} 8. a4 {[%emt 0:00:00]} Bd7 {[%emt 0:00:00]} 9. Qxc4 {[%emt 0:00:00]} Bc6 {[%emt 0:00:00]} 10. Bf4 {[%emt 0:00:00]} Bd6 {[%emt 0:02:30]} 11. Bg5 {[%emt 0:01:00]} Nbd7 {[%emt 0:12:30]} 12. Nc3 {[%emt 0:02:30]} h6 {[%emt 0:02:30]} 13. Bxf6 $11 {[%emt 0:00:30]} Nxf6 {[%emt 0:00:30]} 14. Rfe1 {[%emt 0:01:30]} Ne4 {[%emt 0:02:30]} 15. Qd3 {[%emt 0:01:30]} Nxc3 {[%emt 0:03:30]} 16. bxc3 {[%emt 0:00:00]} b5 {[%emt 0:08:30]} 17. Ng5 {[%emt 0:07:00]} Qxg5 {[%emt 0:01:30]} 18. Bxc6 {[%emt 0:00:30]} Rab8 {[%emt 0:02:30]} 19. axb5 {[%emt 0:00:30]} axb5 {[%emt 0:00:30]} 20. Ra5 {[%emt 0:00:00]} e5 {[%emt 0:02:30]} 21. e3 {[%emt 0:20:00]} Rb6 {[%emt 0:06:30]} 22. Bg2 {[%emt 0:08:30]} exd4 {[%emt 0:06:30]} 23. exd4 {[%emt 0:02:30]} Rfb8 {[%emt 0:01:30]} 24. Rb1 {[%emt 0:07:30]} Qe7 {[%emt 0:03:30]} 25. Raxb5 {[%emt 0:09:30]} Rxb5 {[%emt 0:00:30]} 26. Rxb5 {[%emt 0:00:30]} Rxb5 {[%emt 0:00:30]} 27. Qxb5 {[%emt 0:00:00]} Qe1+ {[%emt 0:00:00]} 1/2-1/2

[Event "5th Ordu Open 2019"]
[Site "Ordu"]
[Date "2019.04.30"]
[Round "3.6"]
[White "Mgeladze, Tamaz"]
[Black "Olcum, Ahmet"]
[Result "1-0"]
[ECO "A26"]
[WhiteElo "2396"]
[BlackElo "2281"]
[Annotator "NA"]
[PlyCount "123"]
[EventDate "2019.04.29"]
[EventType "swiss"]
[EventCountry "TUR"]
[SourceTitle "playchess.com"]
[Source "ChessBase"]
[SourceQuality "1"]
[TimeControl "5400+30"]

1. Nf3 {[%emt 0:00:30]} g6 {[%emt 0:04:30]} 2. g3 {[%emt 0:01:30]} Bg7 {[%emt 0:00:30]} 3. c4 {[%emt 0:00:30]} d6 {[%emt 0:00:30]} 4. Bg2 {[%emt 0:00:30]} e5 {[%emt 0:00:30]} 5. Nc3 {[%emt 0:00:00]} Nc6 {[%emt 0:01:30]} 6. O-O {[%emt 0:00:00]} f5 {[%emt 0:00:30]} 7. d3 {[%emt 0:00:30]} Nf6 {[%emt 0:00:30]} 8. Rb1 {[%emt 0:00:00]} O-O {[%emt 0:00:00]} 9. b4 {[%emt 0:00:00]} h6 {[%emt 0:00:00]} 10. b5 {[%emt 0:00:30]} Ne7 {[%emt 0:00:30]} 11. a4 {[%emt 0:00:00]} g5 {[%emt 0:00:30]} 12. Ba3 {[%emt 0:00:00]} Ng6 {[%emt 0:02:30]} 13. Nd2 {[%emt 0:05:30]} Rb8 {[%emt 0:31:30]} 14. c5 {[%emt 0:03:30]} Be6 {[%emt 0:13:30]} 15. cxd6 {[%emt 0:03:30]} cxd6 {[%emt 0:00:00]} 16. Nc4 {[%emt 0:00:30]} d5 $16 {[%emt 0:01:00]} 17. Bxf8 {[%emt 0:08:30]} Bxf8 {[%emt 0:01:30]} 18. b6 {[%emt 0:00:30]} a6 {[%emt 0:06:30]} 19. Na5 {[%emt 0:02:30]} d4 {[%emt 0:07:30]} 20. Bxb7 {[%emt 0:01:30]} Ne7 {[%emt 0:12:40]} 21. Qc2 {[%emt 0:04:30]} dxc3 {[%emt 0:02:12]} 22. Qxc3 {[%emt 0:00:30]} Bd5 {[%emt 0:06:09]} 23. Qxe5 {[%emt 0:02:30]} Bxb7 {[%emt 0:00:37]} 24. Nxb7 {[%emt 0:00:30]} Rxb7 {[%emt 0:00:30]} 25. Qxf6 {[%emt 0:00:00]} Qd7 {[%emt 0:02:43]} 26. Qa1 {[%emt 0:00:00]} Qe6 {[%emt 0:00:41]} 27. Qb2 {[%emt 0:00:30]} Nd5 {[%emt 0:01:29]} 28. a5 {[%emt 0:00:30]} f4 {[%emt 0:00:53]} 29. Qa2 {[%emt 0:03:30]} Kf7 {[%emt 0:02:20]} 30. Rfc1 {[%emt 0:00:30]} fxg3 {[%emt 0:00:37]} 31. hxg3 {[%emt 0:00:30]} Bg7 {[%emt 0:00:09]} 32. Qc4 {[%emt 0:00:30]} Be5 {[%emt 0:00:52]} 33. e4 {[%emt 0:04:30]} Ne7 {[%emt 0:00:50]} 34. d4 {[%emt 0:00:30]} Qxc4 {[%emt 0:00:30]} 35. Rxc4 {[%emt 0:00:30]} Bb8 {[%emt 0:00:00]} 36. Kg2 {[%emt 0:00:30]} h5 {[%emt 0:00:29]} 37. Kf3 {[%emt 0:02:30]} Kg6 {[%emt 0:00:45]} 38. Rh1 {[%emt 0:00:30]} Rd7 {[%emt 0:00:41]} 39. Ke3 {[%emt 0:00:30]} Rd6 {[%emt 0:00:13]} 40. e5 {[%emt 0:03:30]} Rd5 {[%emt 0:00:29]} 41. Ra1 {[%emt 0:01:30]} Kf5 {[%emt 0:00:36]} 42. f3 {[%emt 0:04:30]} h4 {[%emt 0:00:14]} 43. g4+ {[%emt 0:01:30]} Ke6 {[%emt 0:00:30]} 44. f4 {[%emt 0:00:30]} gxf4+ {[%emt 0:00:23]} 45. Kxf4 {[%emt 0:00:30]} h3 {[%emt 0:00:55]} 46. Ke4 {[%emt 0:01:30]} Rb5 {[%emt 0:00:26]} 47. Rc3 {[%emt 0:00:30]} h2 {[%emt 0:00:30]} 48. Rh3 {[%emt 0:00:30]} Rb2 {[%emt 0:00:26]} 49. Rh6+ {[%emt 0:01:30]} Kd7 {[%emt 0:00:20]} 50. Rh1 {[%emt 0:01:30]} Re2+ {[%emt 0:00:27]} 51. Kd3 {[%emt 0:00:30]} Rg2 {[%emt 0:00:07]} 52. R1xh2 {[%emt 0:01:30]} Rg3+ {[%emt 0:00:14]} 53. Kc4 {[%emt 0:02:30]} Rxg4 {[%emt 0:00:30]} 54. R2h4 {[%emt 0:00:30]} Rg1 {[%emt 0:00:00]} 55. Rh8 {[%emt 0:00:00]} Rc1+ {[%emt 0:00:24]} 56. Kd3 {[%emt 0:00:00]} Nc6 {[%emt 0:01:20]} 57. R4h7+ {[%emt 0:00:30]} Ke6 {[%emt 0:00:00]} 58. Re8+ {[%emt 0:02:30]} Kf5 {[%emt 0:00:18]} 59. Rf7+ {[%emt 0:00:30]} Kg5 {[%emt 0:00:37]} 60. Rg8+ {[%emt 0:00:30]} Kh6 {[%emt 0:00:30]} 61. Rf6+ {[%emt 0:00:30]} Kh7 {[%emt 0:00:30]} 62. Rxc6 {[%emt 0:00:00]} 1-0

[Event "5th Ordu Open 2019"]
[Site "Ordu"]
[Date "2019.04.30"]
[Round "3.7"]
[White "Yuksel, Atilla Koksal"]
[Black "Odeev, Handszar"]
[Result "0-1"]
[ECO "B23"]
[WhiteElo "2248"]
[BlackElo "2394"]
[Annotator "NA"]
[PlyCount "90"]
[EventDate "2019.04.29"]
[EventType "swiss"]
[EventCountry "TUR"]
[SourceTitle "playchess.com"]
[Source "ChessBase"]
[SourceQuality "1"]
[TimeControl "5400+30"]

1. e4 {[%emt 0:01:30]} c5 {[%emt 0:16:30]} 2. Nc3 {[%emt 0:00:30]} Nc6 {[%emt 0:04:30]} 3. f4 {[%emt 0:00:30]} e6 {[%emt 0:02:30]} 4. Bc4 {[%emt 0:00:30]} Na5 {[%emt 0:09:30]} 5. d3 {[%emt 0:05:30]} Ne7 {[%emt 0:06:30]} 6. Nf3 {[%emt 0:06:30]} a6 {[%emt 0:00:30]} 7. a4 {[%emt 0:00:30]} Nxc4 {[%emt 0:00:30]} 8. dxc4 {[%emt 0:00:30]} Nc6 {[%emt 0:00:30]} 9. Be3 {[%emt 0:02:30]} d6 {[%emt 0:06:30]} 10. O-O {[%emt 0:01:30]} Be7 {[%emt 0:00:30]} 11. Qe2 {[%emt 0:04:30]} O-O {[%emt 0:01:30]} 12. Rad1 {[%emt 0:00:30]} Qc7 {[%emt 0:00:30]} 13. f5 {[%emt 0:01:30]} Bf6 {[%emt 0:02:30]} 14. e5 $11 {[%emt 0:02:30]} dxe5 {[%emt 0:21:30]} 15. Ne4 {[%emt 0:07:30]} exf5 {[%emt 0:02:30]} 16. Nxf6+ {[%emt 0:00:30]} gxf6 {[%emt 0:00:30]} 17. Bh6 {[%emt 0:00:30]} Rd8 {[%emt 0:00:00]} 18. Qf2 {[%emt 0:12:30]} f4 {[%emt 0:01:00]} 19. g3 {[%emt 0:06:30]} Rxd1 {[%emt 0:10:44]} 20. Rxd1 {[%emt 0:00:30]} Bf5 {[%emt 0:00:48]} 21. gxf4 {[%emt 0:01:30]} Kh8 {[%emt 0:00:33]} 22. Kh1 {[%emt 0:02:30]} Rg8 {[%emt 0:02:12]} 23. Rg1 {[%emt 0:02:30]} Rg6 {[%emt 0:05:56]} 24. Qxc5 {[%emt 0:02:30]} Qe7 {[%emt 0:01:10]} 25. Qxe7 {[%emt 0:00:30]} Nxe7 {[%emt 0:00:30]} 26. Rxg6 {[%emt 0:00:30]} Nxg6 {[%emt 0:00:30]} 27. Ne1 {[%emt 0:01:30]} Be4+ {[%emt 0:02:21]} 28. Kg1 {[%emt 0:00:00]} exf4 {[%emt 0:00:36]} 29. c5 {[%emt 0:04:00]} f5 {[%emt 0:00:29]} 30. Bg5 {[%emt 0:03:30]} Kg7 {[%emt 0:00:30]} 31. Bd8 {[%emt 0:00:30]} Ne5 {[%emt 0:00:13]} 32. h3 {[%emt 0:01:30]} f6 {[%emt 0:00:40]} 33. b4 {[%emt 0:02:30]} Bc6 {[%emt 0:00:44]} 34. Nd3 {[%emt 0:00:30]} Bxa4 {[%emt 0:00:26]} 35. Nxf4 {[%emt 0:00:30]} Bxc2 {[%emt 0:00:11]} 36. Nd5 {[%emt 0:00:30]} Nd7 {[%emt 0:00:35]} 37. Nb6 {[%emt 0:00:30]} Ne5 {[%emt 0:00:53]} 38. Nd5 {[%emt 0:00:30]} Kf7 {[%emt 0:00:18]} 39. Bc7 {[%emt 0:01:30]} Nc6 {[%emt 0:00:19]} 40. Ne3 {[%emt 0:02:30]} Be4 {[%emt 0:00:04]} 41. Nc4 {[%emt 0:00:30]} Nxb4 {[%emt 0:00:04]} 42. Ba5 {[%emt 0:00:30]} Nd3 {[%emt 0:00:30]} 43. Bb6 {[%emt 0:00:30]} Ke6 {[%emt 0:00:00]} 44. Kf1 {[%emt 0:00:00]} Kd5 {[%emt 0:01:05]} 45. Ne3+ {[%emt 0:00:00]} Kc6 {[%emt 0:00:00]} 0-1

[Event "5th Ordu Open 2019"]
[Site "Ordu"]
[Date "2019.04.30"]
[Round "3.10"]
[White "Mazur, Stefan"]
[Black "Zahedifar, Anahita"]
[Result "1-0"]
[ECO "B19"]
[WhiteElo "2435"]
[BlackElo "2185"]
[Annotator "NA"]
[PlyCount "45"]
[EventDate "2019.04.29"]
[EventType "swiss"]
[EventCountry "TUR"]
[SourceTitle "playchess.com"]
[Source "ChessBase"]
[SourceQuality "1"]
[TimeControl "5400+30"]

1. e4 {[%emt 0:02:30]} c6 {[%emt 0:01:30]} 2. d4 {[%emt 0:00:30]} d5 {[%emt 0:00:30]} 3. Nd2 {[%emt 0:00:00]} dxe4 {[%emt 0:00:00]} 4. Nxe4 {[%emt 0:00:00]} Bf5 {[%emt 0:00:00]} 5. Ng3 {[%emt 0:00:30]} Bg6 {[%emt 0:00:30]} 6. h4 {[%emt 0:00:00]} h6 {[%emt 0:00:00]} 7. Nf3 {[%emt 0:00:00]} e6 {[%emt 0:00:00]} 8. Ne5 {[%emt 0:00:30]} Bh7 {[%emt 0:00:00]} 9. Bd3 {[%emt 0:00:30]} Bxd3 {[%emt 0:00:00]} 10. Qxd3 {[%emt 0:00:30]} Nd7 {[%emt 0:00:00]} 11. f4 {[%emt 0:00:30]} Be7 {[%emt 0:00:00]} 12. Bd2 {[%emt 0:00:00]} Ngf6 {[%emt 0:03:30]} 13. O-O-O {[%emt 0:00:00]} c5 {[%emt 0:08:30]} 14. d5 {[%emt 0:05:30]} Nxd5 {[%emt 0:10:30]} 15. Nh5 {[%emt 0:00:30]} Bf6 {[%emt 0:08:30]} 16. c4 {[%emt 0:17:30]} N5b6 {[%emt 0:14:30]} ({Not} 16... Bxe5 $2 17. fxe5 Nxe5 18. Qe4 $18) 17. Qg3 {[%emt 0:01:30]} Bxe5 $2 {[%emt 0:06:30]} (17... Qe7 $16) 18. fxe5 {[%emt 0:00:00]} Qc7 $18 {[%emt 0:03:30]} (18... Qe7) 19. Nxg7+ {[%emt 0:02:00]} Kd8 {[%emt 0:00:30]} 20. Rhf1 {[%emt 0:06:30]} Kc8 {[%emt 0:04:30]} 21. Bc3 {[%emt 0:03:30]} Rf8 {[%emt 0:03:30]} 22. Rxf7 {[%emt 0:01:30]} Rxf7 {[%emt 0:01:30]} 23. Nxe6 {[%emt 0:00:30]} 1-0

[Event "5th Ordu Open 2019"]
[Site "Ordu"]
[Date "2019.04.30"]
[Round "3.11"]
[White "Dogan, Nazmi Can"]
[Black "Kamer, Kayra"]
[Result "1-0"]
[ECO "B42"]
[WhiteElo "2214"]
[BlackElo "2379"]
[Annotator "NA"]
[PlyCount "83"]
[EventDate "2019.04.29"]
[EventType "swiss"]
[EventCountry "TUR"]
[SourceTitle "playchess.com"]
[Source "ChessBase"]
[SourceQuality "1"]
[TimeControl "5400+30"]

1. e4 {[%emt 0:00:30]} c5 {[%emt 0:01:30]} 2. Nf3 {[%emt 0:00:30]} e6 {[%emt 0:00:30]} 3. d4 {[%emt 0:00:30]} cxd4 {[%emt 0:00:30]} 4. Nxd4 {[%emt 0:00:00]} a6 {[%emt 0:00:00]} 5. Bd3 {[%emt 0:01:00]} Nf6 {[%emt 0:00:00]} 6. O-O {[%emt 0:01:30]} e5 {[%emt 0:00:00]} 7. Nb3 {[%emt 0:02:30]} Nc6 {[%emt 0:01:00]} 8. c4 {[%emt 0:06:30]} d6 {[%emt 0:01:30]} 9. Nc3 {[%emt 0:00:30]} Be6 {[%emt 0:01:30]} 10. Be3 $14 {[%emt 0:02:30]} Ng4 {[%emt 0:02:30]} 11. Bd2 {[%emt 0:05:30]} a5 {[%emt 0:06:30]} 12. Nd5 {[%emt 0:11:30]} a4 {[%emt 0:03:30]} 13. Nc1 {[%emt 0:00:00]} h5 {[%emt 0:04:30]} 14. Ne2 {[%emt 0:02:00]} Be7 {[%emt 0:18:30]} 15. a3 {[%emt 0:12:30]} Nd4 {[%emt 0:04:30]} 16. h3 {[%emt 0:15:30]} Nxe2+ {[%emt 0:04:30]} 17. Bxe2 {[%emt 0:01:30]} Nf6 {[%emt 0:00:30]} 18. Nxf6+ {[%emt 0:01:30]} gxf6 {[%emt 0:05:30]} 19. Bxh5 {[%emt 0:02:30]} Bxc4 {[%emt 0:00:30]} 20. Be2 {[%emt 0:00:30]} Bb3 {[%emt 0:01:30]} 21. Bb5+ {[%emt 0:01:30]} Kf8 {[%emt 0:00:30]} 22. Qe2 {[%emt 0:03:30]} d5 {[%emt 0:00:30]} 23. exd5 {[%emt 0:01:30]} Qxd5 {[%emt 0:00:00]} 24. Rac1 {[%emt 0:01:30]} Rd8 {[%emt 0:05:00]} 25. Be3 {[%emt 0:01:30]} f5 {[%emt 0:00:00]} 26. f3 {[%emt 0:11:09]} Rh4 {[%emt 0:03:00]} 27. Bf2 {[%emt 0:01:27]} Rh6 {[%emt 0:00:00]} 28. Rfe1 {[%emt 0:01:10]} Re6 {[%emt 0:02:00]} 29. Bc4 {[%emt 0:02:16]} Bxc4 {[%emt 0:00:00]} 30. Rxc4 {[%emt 0:00:49]} b5 {[%emt 0:03:00]} 31. Rcc1 {[%emt 0:00:30]} e4 {[%emt 0:00:00]} 32. fxe4 {[%emt 0:02:19]} fxe4 {[%emt 0:00:00]} 33. Red1 {[%emt 0:00:31]} Qf5 {[%emt 0:15:56]} 34. Rxd8+ {[%emt 0:03:42]} Bxd8 {[%emt 0:00:30]} 35. Rc5 {[%emt 0:00:23]} Re5 {[%emt 0:11:17]} 36. Qd2 {[%emt 0:00:51]} Be7 {[%emt 0:03:52]} 37. Qh6+ {[%emt 0:00:40]} Kg8 {[%emt 0:00:04]} 38. Rc3 {[%emt 0:00:36]} Bg5 {[%emt 0:01:10]} 39. Rg3 {[%emt 0:00:30]} Qg6 {[%emt 0:00:30]} 40. h4 {[%emt 0:00:30]} Bc1 {[%emt 0:00:30]} 41. Bd4 {[%emt 0:00:30]} Rd5 {[%emt 0:00:30]} 42. Rxg6+ {[%emt 0:02:41]} 1-0